fUSD/lending_fUSD_20260614
["ID","MTS","AMOUNT","RATE_DAILY","PERIOD"]
[425040264,1781441440000,-153.0,0.0002,2]
[425040265,1781441440000,-463.0,0.0002,2]
[425040261,1781441440000,-151.0,0.0002,2]
[425040263,1781441440000,-159.0,0.0002,2]
[425040271,1781441440000,-508.0,0.00020385,4]
[425040259,1781441440000,-717.0,0.0002,2]
[425040258,1781441440000,-441.0,0.0002,2]
[425040249,1781441440000,-302.63,0.0001974,2]
[425040245,1781441440000,-1088.44603351,0.00019378,2]
[425040248,1781441440000,-166.66,0.00019737,2]
[425040247,1781441440000,-207.11736164,0.00019581,2]
[425040254,1781441440000,-152.0,0.0002,2]
[425040252,1781441440000,-302.63,0.00019994,2]
[425040251,1781441440000,-430.32609735,0.00019926,2]
[425040253,1781441440000,-637.55042,0.0002,2]
[425040256,1781441440000,-181.0,0.0002,2]
[425040267,1781441440000,-166.66,0.00020121,2]
[425040268,1781441440000,-302.63,0.00020208,2]
[425040257,1781441440000,-194.0,0.0002,2]
[425040262,1781441440000,-170.0,0.0002,2]
[425040255,1781441440000,-166.53961815,0.0002,2]
[425040362,1781441441000,-152.0,0.00021,2]
[425040366,1781441441000,-717.0,0.00021,2]
[425040370,1781441441000,-164.65877664,0.00021,2]
[425040364,1781441441000,-194.0,0.00021,2]
[425040361,1781441441000,-637.55042,0.00021,2]
[425040367,1781441441000,-163.17883308,0.00021,2]
[425040365,1781441441000,-441.0,0.00021,2]
[425040379,1781441441000,-706.04393402,0.000219,2]
[425040368,1781441441000,-151.0,0.00021,2]
[425040371,1781441441000,-153.0,0.00021,2]
[425040375,1781441441000,-173.91,0.00021282,2]
[425040374,1781441441000,-2812.53,0.00021273,2]
[425040373,1781441441000,-276.73,0.00021252,2]
[425040377,1781441441000,-706.04393402,0.000217,2]
[425040363,1781441441000,-181.0,0.00021,2]
[425040369,1781441441000,-170.0,0.00021,2]
[425040359,1781441441000,-150.0,0.0002058,2]
[425040318,1781441441000,-652.08200092,0.00020548,2]
[425040358,1781441441000,-150.0,0.0002058,2]
[425040316,1781441441000,-281.18323506,0.00020548,2]
[425040376,1781441441000,-584.79,0.00021416,2]
[425040322,1781441441000,-595.85768052,0.00020548,2]
[425040325,1781441441000,-1422.40298316,0.00020548,2]
[425040339,1781441441000,-311.98467859,0.00020548,2]
[425040342,1781441441000,-1702.7567287,0.00020548,2]
[425040335,1781441441000,-404.75,0.00020548,2]
[425040360,1781441441000,-173.91,0.00020798,2]
[425040346,1781441441000,-6839.42272291,0.00020548,2]
[425040348,1781441441000,-416.17,0.00020567,2]
[425040355,1781441441000,-150.0,0.0002058,2]
[425040353,1781441441000,-150.0,0.0002058,2]
[425040352,1781441441000,-302.65,0.00020568,2]
[425040354,1781441441000,-150.0,0.0002058,2]
[425040357,1781441441000,-150.0,0.0002058,2]
[425040356,1781441441000,-150.0,0.0002058,2]
[425040350,1781441441000,-302.63,0.00020568,2]
[425040378,1781441441000,-653.00944038,0.000217,2]
[425040380,1781441441000,-653.00944038,0.000219,2]
[425040413,1781441441000,-2874.02810723,0.0002238,2]
[425040400,1781441441000,-653.00944038,0.000223,2]
[425040404,1781441441000,-500.0,0.00022379,2]
[425040399,1781441441000,-706.04393402,0.000223,2]
[425040396,1781441441000,-2500.0,0.0002228,2]
[425040402,1781441441000,-507.07,0.0002237,3]
[425040406,1781441441000,-500.0,0.00022379,2]
[425040408,1781441441000,-587.89,0.00022379,2]
[425040407,1781441441000,-500.0,0.00022379,2]
[425040409,1781441441000,-500.0,0.00022379,2]
[425040412,1781441441000,-215191.7200738,0.0002238,2]
[425040411,1781441441000,-500.0,0.00022379,2]
[425040381,1781441441000,-1333.0,0.000219,7]
[425040414,1781441441000,-535.41792625,0.0002238,2]
[425040415,1781441441000,-2903.13387152,0.0002238,2]
[425040417,1781441441000,-760.11851838,0.0002238,2]
[425040397,1781441441000,-774.27980706,0.00022299,2]
[425040401,1781441441000,-336.3,0.00022353,2]
[425040410,1781441441000,-500.0,0.00022379,2]
[425040398,1781441441000,-333.93197545,0.00022299,2]
[425040372,1781441441000,-463.0,0.00021,2]
[425040384,1781441441000,-637.55042,0.00022,2]
[425040393,1781441441000,-463.0,0.00022,2]
[425040394,1781441441000,-706.04393402,0.000221,2]
[425040392,1781441441000,-153.0,0.00022,2]
[425040382,1781441441000,-5000.0,0.00021918,2]
[425040383,1781441441000,-150.0,0.00021918,2]
[425040389,1781441441000,-717.0,0.00022,2]
[425040386,1781441441000,-181.0,0.00022,2]
[425040385,1781441441000,-152.0,0.00022,2]
[425040387,1781441441000,-194.0,0.00022,2]
[425040390,1781441441000,-164.19708434,0.00022,2]
[425040391,1781441441000,-170.0,0.00022,2]
[425040395,1781441441000,-653.00944038,0.000221,2]
[425040405,1781441441000,-500.0,0.00022379,2]
[425040388,1781441441000,-441.0,0.00022,2]
[425040403,1781441441000,-500.0,0.00022379,2]
[425040420,1781441442000,-1718.32,0.0002238,2]
[425040418,1781441442000,-509.25939777,0.0002238,2]
[425040419,1781441442000,-1170.0,0.0002238,2]
[425040422,1781441442000,-529.41064285,0.0002238,2]
[425040423,1781441442000,-595.23610728,0.0002238,2]
[425040424,1781441442000,-847.20337757,0.0002238,2]
[425040421,1781441442000,-4589.61695683,0.0002238,2]
[425040425,1781441443000,-1051.48,0.0002238,2]
[425040435,1781441446000,-1343.0,0.0002238,2]
[425040432,1781441446000,-500.0,0.00022379,2]
[425040434,1781441446000,-1928.96147859,0.0002238,2]
[425040433,1781441446000,-5888.0038205,0.0002238,2]
[425040437,1781441540000,-529.41064285,0.00016395,2]
[425040438,1781441558000,-529.41064285,0.00016395,2]
[425040439,1781441577000,-595.23610728,0.00016395,2]
[425040440,1781441596000,-366.66522342,0.00016395,2]
[425040443,1781442009000,250.0,0.00014,2]
[425040444,1781442050000,169.56021657,0.00014,2]
[425040446,1781442451000,-825.00061453,0.00016009,2]
[425040445,1781442451000,-300.0,0.00016,2]
[425040447,1781442456000,171.0,0.00021,120]
[425040448,1781442486000,200.77,0.00015,2]
[425040456,1781442632000,-500.0,0.00016215,2]
[425040457,1781442632000,-390.45707574,0.00016215,2]
[425040452,1781442632000,-150.0,0.00016059,2]
[425040458,1781442632000,-300.0,0.00016216,2]
[425040455,1781442632000,-500.0,0.00016215,2]
[425040451,1781442632000,-723.36295732,0.00016009,2]
[425040454,1781442632000,-500.0,0.00016215,2]
[425040459,1781442632000,-8904.66426114,0.00016217,9]
[425040453,1781442632000,-388.99345636,0.00016113,2]
[425040461,1781442632000,-385.37598275,0.00016217,9]
[425040467,1781442632000,-150.0,0.00016437,2]
[425040465,1781442632000,-16.04849064,0.00016436,2]
[425040466,1781442632000,-133.95150936,0.00016436,2]
[425040460,1781442632000,-536.089042,0.00016217,9]
[425040464,1781442632000,-1004.4919913,0.00016217,9]
[425040463,1781442632000,-3858.75604452,0.00016217,9]
[425040462,1781442632000,-459.87745269,0.00016217,9]
[425040468,1781442632000,-60.74743695,0.00016437,2]
[425040509,1781442638000,-2834.21637807,0.00018912,2]
[425040505,1781442638000,-260.9,0.0001841,2]
[425040499,1781442638000,-166.66,0.00017923,2]
[425040496,1781442638000,-298.09003192,0.0001761,2]
[425040502,1781442638000,-9999.99,0.00018081,2]
[425040503,1781442638000,-411.95466728,0.00018212,2]
[425040504,1781442638000,-166.66,0.00018271,2]
[425040500,1781442638000,-350.0,0.00018,2]
[425040519,1781442638000,-500.0,0.00019011,2]
[425040512,1781442638000,-160.0,0.00019,2]
[425040508,1781442638000,-696.8518263,0.00018912,2]
[425040510,1781442638000,-500.7966,0.00018912,2]
[425040506,1781442638000,-167.6,0.00018887,2]
[425040517,1781442638000,-500.0,0.00019011,2]
[425040518,1781442638000,-500.0,0.00019011,2]
[425040516,1781442638000,-448.02690944,0.00019011,2]
[425040513,1781442638000,-365.45326147,0.0001901,7]
[425040514,1781442638000,-500.0,0.00019011,2]
[425040515,1781442638000,-563.39,0.00019011,2]
[425040511,1781442638000,-165.78,0.0001899,2]
[425040498,1781442638000,-326.82,0.00017638,2]
[425040494,1781442638000,-300.0,0.0001761,2]
[425040497,1781442638000,-250.0,0.0001761,2]
[425040476,1781442638000,-151.0,0.00016437,2]
[425040475,1781442638000,-89.25256305,0.00016437,2]
[425040477,1781442638000,-151.0,0.00016437,2]
[425040480,1781442638000,-151.0,0.00016437,2]
[425040478,1781442638000,-152.0,0.00016437,2]
[425040481,1781442638000,-153.0,0.00016437,2]
[425040479,1781442638000,-152.0,0.00016437,2]
[425040482,1781442638000,-151.0,0.00016437,2]
[425040483,1781442638000,-150.0,0.00016437,2]
[425040485,1781442638000,-152.0,0.00016437,2]
[425040486,1781442638000,-152.0,0.00016437,2]
[425040487,1781442638000,-260.9,0.00016438,2]
[425040489,1781442638000,-166.66,0.00016879,2]
[425040488,1781442638000,-166.66,0.00016531,2]
[425040493,1781442638000,-361.00654364,0.0001761,2]
[425040491,1781442638000,-166.66,0.00017575,2]
[425040490,1781442638000,-166.66,0.00017227,2]
[425040492,1781442638000,-300.0,0.000176,2]
[425040484,1781442638000,-500.0,0.00016437,2]
[425040520,1781442638000,-572.1112,0.00019012,2]
[425040495,1781442638000,-600.0,0.0001761,2]
[425040507,1781442638000,-203.6403177,0.00018892,2]
[425040522,1781442638000,-33280.8127,0.00019012,2]
[425040501,1781442638000,-514.0,0.00018,2]
[425040524,1781442638000,-173.3,0.00019012,2]
[425040566,1781442638000,-299.999999,0.0002,2]
[425040559,1781442638000,-52492.26681712,0.0002,2]
[425040551,1781442638000,-26858.02838163,0.0002,2]
[425040563,1781442638000,-13133.948557,0.0002,2]
[425040557,1781442638000,-1062.0163102,0.0002,2]
[425040569,1781442638000,-2101.0,0.0002,2]
[425040555,1781442638000,-200.0,0.0002,2]
[425040564,1781442638000,-152.0,0.0002,2]
[425040571,1781442638000,-154.0,0.0002,2]
[425040577,1781442638000,-394.0,0.0002,2]
[425040578,1781442638000,-255.0,0.0002,2]
[425040581,1781442638000,-378.54986326,0.00020451,2]
[425040576,1781442638000,-158.0,0.0002,2]
[425040579,1781442638000,-260.9,0.00020381,2]
[425040582,1781442638000,-500.0,0.00020699,2]
[425040575,1781442638000,-152.0,0.0002,2]
[425040574,1781442638000,-609.0,0.0002,2]
[425040580,1781442638000,-514.0,0.00020385,4]
[425040572,1781442638000,-165.0,0.0002,2]
[425040583,1781442638000,-23046.1611238,0.000207,2]
[425040526,1781442638000,-173.3,0.00019012,2]
[425040561,1781442638000,-8000.0,0.0002,2]
[425040568,1781442638000,-288.957984,0.0002,2]
[425040573,1781442638000,-375.0,0.0002,2]
[425040553,1781442638000,-1315.68132558,0.0002,2]
[425040531,1781442638000,-563.39,0.00019111,2]
[425040570,1781442638000,-152.0,0.0002,2]
[425040528,1781442638000,-500.0,0.00019111,2]
[425040521,1781442638000,-403996.9836,0.00019012,2]
[425040525,1781442638000,-173.3,0.00019012,2]
[425040527,1781442638000,-4041.0,0.000191,5]
[425040532,1781442638000,-2000.0,0.00019111,2]
[425040529,1781442638000,-500.0,0.00019111,2]
[425040533,1781442638000,-500.0,0.00019111,2]
[425040535,1781442638000,-500.0,0.00019111,2]
[425040536,1781442638000,-350.87,0.00019238,2]
[425040530,1781442638000,-563.39,0.00019111,2]
[425040537,1781442638000,-2834.21637802,0.00019935,2]
[425040539,1781442638000,-500.0,0.00019999,2]
[425040534,1781442638000,-500.0,0.00019111,2]
[425040546,1781442638000,-4012.87947867,0.0002,2]
[425040540,1781442638000,-5295.0149003,0.0002,2]
[425040548,1781442638000,-3950.0,0.0002,2]
[425040538,1781442638000,-696.85182629,0.00019965,2]
[425040542,1781442638000,-179.33945779,0.0002,2]
[425040543,1781442638000,-26001.37641089,0.0002,2]
[425040541,1781442638000,-1558.54790556,0.0002,2]
[425040631,1781442639000,-1418.23354624,0.00021892,7]
[425040630,1781442639000,-948.05497706,0.00021892,7]
[425040625,1781442639000,-226.01758824,0.000215,2]
[425040626,1781442639000,-350.87,0.00021643,2]
[425040622,1781442639000,-163.2523601,0.000215,2]
[425040627,1781442639000,-163.2523601,0.000217,2]
[425040624,1781442639000,-58554.23779167,0.000215,2]
[425040623,1781442639000,-176.5109835,0.000215,2]
[425040634,1781442639000,-614.0,0.00021917,7]
[425040629,1781442639000,-537.41002031,0.00021892,7]
[425040642,1781442639000,-424.622988,0.00021918,2]
[425040645,1781442639000,-424.622988,0.00021918,2]
[425040643,1781442639000,-424.622988,0.00021918,2]
[425040644,1781442639000,-424.622988,0.00021918,2]
[425040641,1781442639000,-151.0,0.00021918,2]
[425040633,1781442639000,-176.5109835,0.000219,2]
[425040635,1781442639000,-5000.0,0.00021918,2]
[425040636,1781442639000,-153.978247,0.00021918,2]
[425040637,1781442639000,-151.0,0.00021918,2]
[425040638,1781442639000,-151.0,0.00021918,2]
[425040647,1781442639000,-300.0,0.00022,2]
[425040621,1781442639000,-563.39,0.00021499,2]
[425040640,1781442639000,-151.0,0.00021918,2]
[425040632,1781442639000,-163.2523601,0.000219,2]
[425040588,1781442639000,-288.957984,0.00021,2]
[425040607,1781442639000,-72487.7083571,0.0002118,2]
[425040651,1781442639000,-165.0,0.00022,2]
[425040589,1781442639000,-152.0,0.00021,2]
[425040584,1781442639000,-300.0,0.00020936,30]
[425040592,1781442639000,-375.0,0.00021,2]
[425040585,1781442639000,-2834.21637802,0.00020958,2]
[425040591,1781442639000,-165.0,0.00021,2]
[425040586,1781442639000,-1213.58353024,0.00021,2]
[425040587,1781442639000,-200.29521905,0.00021,2]
[425040590,1781442639000,-154.0,0.00021,2]
[425040596,1781442639000,-152.0,0.00021,2]
[425040594,1781442639000,-609.0,0.00021,2]
[425040613,1781442639000,-151.0,0.0002118,2]
[425040617,1781442639000,-295.87739901,0.00021244,2]
[425040600,1781442639000,-394.0,0.00021,2]
[425040603,1781442639000,-696.85182629,0.00021019,2]
[425040611,1781442639000,-151.0,0.0002118,2]
[425040619,1781442639000,-1124.6467501,0.0002132,2]
[425040598,1781442639000,-158.0,0.00021,2]
[425040615,1781442639000,-151.0,0.0002118,2]
[425040609,1781442639000,-151.0,0.0002118,2]
[425040620,1781442639000,-1928.9614786,0.0002132,2]
[425040605,1781442639000,-150.0,0.00021059,2]
[425040602,1781442639000,-255.0,0.00021,2]
[425040628,1781442639000,-176.5109835,0.000217,2]
[425040650,1781442639000,-154.0,0.00022,2]
[425040639,1781442639000,-151.0,0.00021918,2]
[425040652,1781442639000,-375.0,0.00022,2]
[425040673,1781442639000,-417.82729489,0.00022379,2]
[425040671,1781442639000,-243.29635154,0.00022379,2]
[425040682,1781442639000,-151.0,0.0002238,2]
[425040688,1781442639000,-440.43033932,0.00022476,2]
[425040680,1781442639000,-500.0,0.00022379,2]
[425040690,1781442639000,-151.0,0.000225,2]
[425040685,1781442639000,-349.46918583,0.0002238,2]
[425040689,1781442639000,-26316.88739223,0.000225,2]
[425040687,1781442639000,-416.05131207,0.00022407,2]
[425040684,1781442639000,-1000.0,0.0002238,2]
[425040681,1781442639000,-200.0,0.0002238,2]
[425040686,1781442639000,-1918.917,0.00022392,7]
[425040692,1781442639000,-151.0,0.000225,2]
[425040691,1781442639000,-151.0,0.000225,2]
[425040695,1781442639000,-151.0,0.000225,2]
[425040693,1781442639000,-151.0,0.000225,2]
[425040694,1781442639000,-151.0,0.000225,2]
[425040696,1781442639000,-151.0,0.000225,2]
[425040700,1781442639000,-500.0,0.000225,2]
[425040697,1781442639000,-151.0,0.000225,2]
[425040701,1781442639000,-151.0,0.000225,2]
[425040699,1781442639000,-151.0,0.000225,2]
[425040649,1781442639000,-157.64571876,0.00022,2]
[425040676,1781442639000,-500.0,0.00022379,2]
[425040672,1781442639000,-151.0,0.00022379,2]
[425040683,1781442639000,-200.0,0.0002238,2]
[425040675,1781442639000,-500.0,0.00022379,2]
[425040674,1781442639000,-150.0,0.00022379,2]
[425040646,1781442639000,-2834.21637802,0.00021981,2]
[425040648,1781442639000,-288.957984,0.00022,2]
[425040656,1781442639000,-394.0,0.00022,2]
[425040698,1781442639000,-151.0,0.000225,2]
[425040653,1781442639000,-609.0,0.00022,2]
[425040654,1781442639000,-152.0,0.00022,2]
[425040657,1781442639000,-255.0,0.00022,2]
[425040660,1781442639000,-163.2523601,0.000222,2]
[425040664,1781442639000,-260.9,0.00022353,2]
[425040659,1781442639000,-244.65173129,0.0002211,2]
[425040661,1781442639000,-176.5109835,0.000222,2]
[425040655,1781442639000,-166.49854041,0.00022,2]
[425040667,1781442639000,-500.0,0.00022379,2]
[425040668,1781442639000,-500.0,0.00022379,2]
[425040679,1781442639000,-574.34,0.00022379,2]
[425040670,1781442639000,-500.0,0.00022379,2]
[425040678,1781442639000,-500.0,0.00022379,2]
[425040669,1781442639000,-500.0,0.00022379,2]
[425040677,1781442639000,-500.0,0.00022379,2]
[425040663,1781442639000,-158.509308,0.00022207,2]
[425040666,1781442639000,-500.0,0.00022379,2]
[425040658,1781442639000,-696.85182629,0.00022072,2]
[425040662,1781442639000,-308.24,0.000222,2]
[425040665,1781442639000,-500.0,0.00022358,2]
[425040741,1781442640000,-375.0,0.00023,2]
[425040742,1781442640000,-609.0,0.00023,2]
[425040739,1781442640000,-154.0,0.00023,2]
[425040740,1781442640000,-165.0,0.00023,2]
[425040750,1781442640000,-212.492188,0.00023063,14]
[425040732,1781442640000,-151.0,0.000225,2]
[425040738,1781442640000,-288.957984,0.00023,2]
[425040730,1781442640000,-500.0,0.000225,2]
[425040729,1781442640000,-151.0,0.000225,2]
[425040737,1781442640000,-514.0,0.00022769,6]
[425040727,1781442640000,-500.0,0.000225,2]
[425040736,1781442640000,-2812.53,0.00022691,2]
[425040743,1781442640000,-152.0,0.00023,2]
[425040762,1781442640000,-500.0,0.00023219,2]
[425040747,1781442640000,-255.605994,0.00023063,120]
[425040744,1781442640000,-394.0,0.00023,2]
[425040745,1781442640000,-255.0,0.00023,2]
[425040746,1781442640000,-2834.21637802,0.00023004,2]
[425040749,1781442640000,-255.605994,0.00023063,14]
[425040751,1781442640000,-244.810813,0.00023063,14]
[425040753,1781442640000,-1149.0,0.00023153,2]
[425040757,1781442640000,-500.0,0.00023219,2]
[425040759,1781442640000,-353.02916033,0.00023219,2]
[425040758,1781442640000,-500.0,0.00023219,2]
[425040760,1781442640000,-500.0,0.00023219,2]
[425040735,1781442640000,-500.0,0.0002263,2]
[425040748,1781442640000,-212.492188,0.00023063,120]
[425040733,1781442640000,-500.0,0.000225,2]
[425040707,1781442640000,-151.0,0.000225,2]
[425040731,1781442640000,-151.0,0.000225,2]
[425040702,1781442640000,-151.0,0.000225,2]
[425040703,1781442640000,-500.0,0.000225,2]
[425040761,1781442640000,-500.0,0.00023219,2]
[425040714,1781442640000,-500.0,0.000225,2]
[425040710,1781442640000,-151.0,0.000225,2]
[425040712,1781442640000,-151.0,0.000225,2]
[425040711,1781442640000,-500.0,0.000225,2]
[425040706,1781442640000,-151.0,0.000225,2]
[425040708,1781442640000,-500.0,0.000225,2]
[425040713,1781442640000,-151.0,0.000225,2]
[425040704,1781442640000,-151.0,0.000225,2]
[425040705,1781442640000,-151.0,0.000225,2]
[425040734,1781442640000,-151.0,0.000225,2]
[425040709,1781442640000,-151.0,0.000225,2]
[425040726,1781442640000,-151.0,0.000225,2]
[425040724,1781442640000,-151.0,0.000225,2]
[425040717,1781442640000,-151.0,0.000225,2]
[425040719,1781442640000,-500.0,0.000225,2]
[425040716,1781442640000,-500.0,0.000225,2]
[425040725,1781442640000,-500.0,0.000225,2]
[425040718,1781442640000,-151.0,0.000225,2]
[425040722,1781442640000,-500.0,0.000225,2]
[425040720,1781442640000,-151.0,0.000225,2]
[425040721,1781442640000,-151.0,0.000225,2]
[425040723,1781442640000,-151.0,0.000225,2]
[425040728,1781442640000,-151.0,0.000225,2]
[425040715,1781442640000,-151.0,0.000225,2]
[425040754,1781442640000,-229.0,0.00023153,2]
[425040752,1781442640000,-696.85182629,0.00023126,2]
[425040755,1781442640000,-353.0,0.00023156,5]
[425040797,1781442640000,-500.0,0.00024008,2]
[425040793,1781442640000,-394.0,0.00024,2]
[425040796,1781442640000,-500.0,0.00024008,2]
[425040794,1781442640000,-255.0,0.00024,2]
[425040795,1781442640000,-500.0,0.00024008,2]
[425040801,1781442640000,-200.0,0.00024134,2]
[425040799,1781442640000,-350.87,0.00024048,2]
[425040802,1781442640000,-150.0,0.00024134,2]
[425040807,1781442640000,-189.0,0.00024134,2]
[425040803,1781442640000,-150.0,0.00024134,2]
[425040804,1781442640000,-250.0,0.00024134,2]
[425040808,1781442640000,-663.48,0.00024174,2]
[425040809,1781442640000,-992.07,0.00024174,2]
[425040810,1781442640000,-10636.92,0.00024174,2]
[425040805,1781442640000,-250.0,0.00024134,2]
[425040806,1781442640000,-150.092,0.00024134,2]
[425040812,1781442640000,-200.385549,0.000243,2]
[425040813,1781442640000,-260.9,0.00024324,2]
[425040814,1781442640000,-167.33904,0.000245,14]
[425040811,1781442640000,-696.85182629,0.00024179,2]
[425040816,1781442640000,-229.0,0.00024523,2]
[425040820,1781442640000,-150.00000001,0.00024633,7]
[425040817,1781442640000,-550.0,0.0002461,2]
[425040818,1781442640000,-573.0,0.00024611,2]
[425040815,1781442640000,-575.851405,0.00024523,2]
[425040819,1781442640000,-150.0,0.00024633,7]
[425040756,1781442640000,-500.0,0.00023219,2]
[425040792,1781442640000,-170.0,0.00024,2]
[425040791,1781442640000,-609.0,0.00024,2]
[425040800,1781442640000,-150.0,0.00024134,2]
[425040790,1781442640000,-375.0,0.00024,2]
[425040765,1781442640000,-500.0,0.00023219,2]
[425040789,1781442640000,-165.0,0.00024,2]
[425040773,1781442640000,-500.0,0.00023219,2]
[425040763,1781442640000,-500.0,0.00023219,2]
[425040769,1781442640000,-500.0,0.00023219,2]
[425040772,1781442640000,-500.0,0.00023219,2]
[425040770,1781442640000,-500.0,0.00023219,2]
[425040764,1781442640000,-500.0,0.00023219,2]
[425040767,1781442640000,-500.0,0.00023219,2]
[425040768,1781442640000,-500.0,0.00023219,2]
[425040771,1781442640000,-500.0,0.00023219,2]
[425040766,1781442640000,-500.0,0.00023219,2]
[425040775,1781442640000,-574.34,0.00023219,2]
[425040777,1781442640000,-500.0,0.00023309,2]
[425040774,1781442640000,-574.34,0.00023219,2]
[425040786,1781442640000,-229.0,0.00023838,2]
[425040798,1781442640000,-2834.21637802,0.00024027,2]
[425040788,1781442640000,-154.0,0.00024,2]
[425040785,1781442640000,-276.73,0.00023613,2]
[425040782,1781442640000,-631.0,0.00023534,2]
[425040778,1781442640000,-500.0,0.00023309,2]
[425040779,1781442640000,-2020.7226164,0.00023499,2]
[425040787,1781442640000,-288.957984,0.00024,2]
[425040780,1781442640000,-3557.0,0.00023534,2]
[425040783,1781442640000,-383.0,0.00023534,2]
[425040776,1781442640000,-500.0,0.00023309,2]
[425040781,1781442640000,-1359.0,0.00023534,2]
[425040784,1781442640000,-1228.0,0.00023534,2]
[425040865,1781442641000,-151.0,0.00025,2]
[425040862,1781442641000,-151.0,0.00025,2]
[425040873,1781442641000,-207.278336,0.00025,2]
[425040874,1781442641000,-207.278336,0.00025,2]
[425040863,1781442641000,-619.48634767,0.00025,2]
[425040860,1781442641000,-151.0,0.00025,2]
[425040856,1781442641000,-151.0,0.00025,2]
[425040859,1781442641000,-151.0,0.00025,2]
[425040861,1781442641000,-382.67172888,0.00025,2]
[425040855,1781442641000,-168.3996865,0.00025,2]
[425040854,1781442641000,-155.0,0.00025,2]
[425040858,1781442641000,-151.0,0.00025,2]
[425040857,1781442641000,-151.0,0.00025,2]
[425040864,1781442641000,-151.0,0.00025,2]
[425040880,1781442641000,-151.0,0.00025,2]
[425040867,1781442641000,-238.24622,0.00025,2]
[425040871,1781442641000,-207.278336,0.00025,2]
[425040869,1781442641000,-151.0,0.00025,2]
[425040870,1781442641000,-151.0,0.00025,2]
[425040868,1781442641000,-151.0,0.00025,2]
[425040872,1781442641000,-207.278336,0.00025,2]
[425040875,1781442641000,-2814.83,0.00025,30]
[425040881,1781442641000,-151.0,0.00025,2]
[425040878,1781442641000,-424.622988,0.00025,2]
[425040879,1781442641000,-424.622988,0.00025,2]
[425040877,1781442641000,-424.622988,0.00025,2]
[425040882,1781442641000,-401.59822993,0.00025,2]
[425040883,1781442641000,-151.0,0.00025,2]
[425040850,1781442641000,-114573.22670657,0.00025,7]
[425040866,1781442641000,-151.0,0.00025,2]
[425040853,1781442641000,-246032.79466733,0.00025,2]
[425040821,1781442641000,-151.0,0.00024658,2]
[425040851,1781442641000,-2239.48794874,0.00025,2]
[425040884,1781442641000,-151.0,0.00025,2]
[425040822,1781442641000,-151.0,0.00024658,2]
[425040824,1781442641000,-165.842226,0.00024658,2]
[425040834,1781442641000,-500.0,0.00024728,2]
[425040825,1781442641000,-1000.0,0.00024658,2]
[425040831,1781442641000,-207.278336,0.00024658,2]
[425040835,1781442641000,-851.69161082,0.000249,2]
[425040828,1781442641000,-151.0,0.00024658,2]
[425040829,1781442641000,-207.278336,0.00024658,2]
[425040827,1781442641000,-151.0,0.00024658,2]
[425040830,1781442641000,-207.278336,0.00024658,2]
[425040832,1781442641000,-207.278336,0.00024658,2]